Cogmind - Beta 15 @@@ ROGUE MODE // 2025.09.04 @ 17:33:26 Player: Hartman Result: Destroyed by C-35 Carver with Carbide Saw Performance ------------- Evolutions (7) 3500 Regions Visited (19) 3800 Robots Destroyed (16) 80 Value Destroyed (530) 530 Prototype IDs (34) 680 Alien Tech Used (0) 0 Bonus (2494) 2494 TOTAL SCORE: 11084 Bonus ------- Follower Combat Kills 709 Entered Garrisons 200 Used RIF Installer 500 Entered DSFs 500 Aligned with FarCom 300 Met Imprinter 300 Friendly Fire -15 Cogmind --------- Core Integrity 0/1300 Matter 26/300 Energy 100/100 System Corruption 21% Temperature Cool (0) Movement Core (50) Location -3/Research Parts ------- > --- POWER (2) -------- (None) > --- PROPULSION (5) --- (None) > --- UTILITY (11) ----- Experimental System Shield > --- WEAPON (3) ------- (None) > --- INVENTORY (5) ---- (None) Peak State ------------ > --- POWER ------------ Angular Momentum Engine Quantum Reactor > --- PROPULSION ------- Thunder Leg Potential Leg Potential Leg > --- UTILITY ---------- Improved Signal Interpreter ECM Suite Advanced ECM Suite Centrium Medium Armor Plating Hacking Suite Improved System Shield Experimental System Shield Experimental System Shield Experimental System Shield Experimental System Shield > --- WEAPON ----------- HERF Cannon HERF Cannon Railgun > --- INVENTORY -------- Improved Gravmag System Gyrokinetic Inverter Linear Gravjet Improved Antigrav System Improved Remote Datajack [Rating: 121] Favorites ----------- Power Fission Core Engine Angular Momentum Engine Power Core Fission Core Reactor Quantum Reactor Propulsion Potential Leg Treads Armored Medium Treads Leg Potential Leg Hover Unit Improved Hover Unit Flight Unit Field Propulsion Drive Utility Hacking Suite Device ECM Suite Storage Compact Battery Processor Improved Signal Interpreter Hackware Hacking Suite Protection Centrium Medium Armor Plating Weapon Improved Datajack Energy Gun Plasma Rifle Energy Cannon HERF Cannon Ballistic Gun Light Assault Rifle Ballistic Cannon Slug Cannon Launcher Shock Bomb Launcher Special Weapon Improved Remote Datajack Slashing Weapon Phasing Sabre Special Melee Weapon Improved Datajack Build | -11 -10 -10 -10 -9 -8 -7 -6 -6 -6 -6 -5 -5 -5 -5 -5 -4 -4 -4 -3 ------- Run | Yrd Mat Min Exi Min Mat Fac Fac Low Low Zio Pro Fac Ext Cet Arc Fac DSF Gar Res Slots Evolved 14 | . . . . . 4 2 2 . . . . 2 . . . 2 . . 2 Power 1 | . . . . . 1 . . . . . . . . . . . . . . Propulsion 3 | . . . . . 1 . . . . . . 1 . . . . . . 1 Utility 9 | . . . . . 2 2 1 . . . . 1 . . . 2 . . 1 Weapon 1 | . . . . . . . 1 . . . . . . . . . . . . Parts Attached 115 | 6 5 1 3 4 19 6 10 6 2 4 5 7 3 4 . 6 2 3 19 Power 18 | 1 . . . 1 7 1 1 2 . . . 1 . 1 . . . 1 2 Engine 9 | 1 . . . 1 5 . . 1 . . . 1 . . . . . . . Core 7 | . . . . . 2 1 1 1 . . . . . . . . . . 2 Reactor 2 | . . . . . . . . . . . . . . 1 . . . 1 . Propulsion 25 | 2 1 . 2 . 1 . 3 . . . 1 1 1 . . 1 . 1 11 Treads 2 | . . . . . . . . . . . . . . . . . . . 2 Leg 7 | 2 1 . 2 . . . . . . . 1 . . . . 1 . . . Wheel . | . . . . . . . . . . . . . . . . . . . . Hover 14 | . . . . . 1 . 3 . . . . 1 1 . . . . 1 7 Flight 2 | . . . . . . . . . . . . . . . . . . . 2 Utility 36 | 1 2 . 1 1 5 4 3 3 2 2 1 3 . 1 . 4 . 1 2 Device 10 | . 2 . 1 . 1 1 2 . . 1 . 1 . . . . . . 1 Storage 2 | 1 . . . . . . . . 1 . . . . . . . . . . Processor 7 | . . . . . 1 1 1 2 . . 1 1 . . . . . . . Hackware 13 | . . . . 1 1 1 . 1 1 1 . 1 . . . 4 . 1 1 Protection 4 | . . . . . 2 1 . . . . . . . 1 . . . . . Artifact . | . . . . . . . . . . . . . . . . . . . . Weapon 36 | 2 2 1 . 2 6 1 3 1 . 2 3 2 2 2 . 1 2 . 4 Energy Gun 11 | 1 . 1 . 1 3 . 2 . . 1 . 1 . 1 . . . . . Energy Cannon 9 | . . . . . 1 . 1 1 . . . 1 . . . . 2 . 3 Ballistic Gun 4 | 1 . . . 1 . . . . . . . . . 1 . 1 . . . Ballistic Cannon 2 | . . . . . . . . . . . 1 . 1 . . . . . . Launcher 4 | . 1 . . . 1 1 . . . . 1 . . . . . . . . Special Weapon 3 | . 1 . . . . . . . . . . . 1 . . . . . 1 Impact Weapon . | . . . . . . . . . . . . . . . . . . . . Slashing Weapon 2 | . . . . . . . . . . 1 1 . . . . . . . . Piercing Weapon . | . . . . . . . . . . . . . . . . . . . . Special Melee Weapon 1 | . . . . . 1 . . . . . . . . . . . . . . Unidentified Prototypes 8 | . . . . . 1 . 1 . . 1 . . . 3 . 1 . . 1 Parts Lost 61 | . 1 . . 1 9 2 . . 1 . 6 . . 1 4 . 1 13 22 Power 9 | . . . . . 4 . . . . . . . . . . . 1 2 2 Propulsion 17 | . . . . . . . . . . . 2 . . . . . . 5 10 Utility 20 | . . . . 1 2 2 . . 1 . 1 . . 1 2 . . 3 7 Weapon 15 | . 1 . . . 3 . . . . . 3 . . . 2 . . 3 3 Highest Loss Streak 16 | . 1 . . 1 4 1 . . 1 . 6 . . 1 4 . 1 10 16 To Critical Strikes . | . . . . . . . . . . . . . . . . . . . . Average Backups 4 | 3 4 5 4 3 3 4 4 5 5 4 4 4 4 4 3 4 5 4 1 Power . | 1 1 1 1 1 . 1 1 1 1 1 1 1 . . . . . . . Propulsion 1 | 1 2 2 1 . . . 1 2 2 2 1 . . 1 2 3 4 3 . Utility . | . . 1 1 1 1 . . . . . . 1 1 . . . . . . Weapon 1 | 1 . 1 1 . 1 3 1 2 2 1 1 1 2 3 . . . . . Tool/Special . | . . . . . . . . . . . . . . . . . . . . Unused Backups 17 | . 1 . 2 1 5 2 . 1 . . 1 . 2 . . . . 1 1 Power 4 | . . . . . 1 . . 1 . . 1 . 1 . . . . . . Propulsion 3 | . . . 2 . 1 . . . . . . . . . . . . . . Utility 4 | . . . . . 2 . . . . . . . 1 . . . . . 1 Weapon 5 | . 1 . . 1 . 2 . . . . . . . . . . . 1 . Tool/Special 1 | . . . . . 1 . . . . . . . . . . . . . . Average Slot Usage (%) 91 | . 98 100 91 92 76 83 95 99 98 99 96 96 100 99 91 77 91 86 65 Engine 5 | . 14 14 14 14 15 3 . . . . . 4 5 5 5 5 5 4 . Core 5 | . . . . . . 11 12 12 13 13 13 5 5 1 . . . . 3 Leg 11 | . 28 28 28 28 18 15 5 . . . 4 13 10 5 11 12 15 10 . Hover 7 | . . . . . . . 11 20 20 19 12 5 11 16 5 . . 4 7 Device 14 | . 26 28 20 15 12 14 18 14 6 12 13 16 17 17 16 10 10 10 11 Processor 4 | . . . . . . 6 6 9 13 5 1 1 5 5 5 5 5 5 3 Hackware 16 | . . . . 6 6 15 13 14 22 20 24 22 23 17 16 22 31 29 20 Protection 2 | . . . . . 5 . 6 6 1 . . . . 3 5 5 5 4 . Energy Gun 6 | . 14 14 14 20 9 7 11 2 . 1 4 3 5 5 4 . . . . Energy Cannon 4 | . . . . . 2 . 1 9 13 10 3 4 3 . . . 6 9 7 Special Weapon 2 | . 9 14 14 1 . . . . . . . . 3 4 3 . 1 4 2 Special Melee Weapon 2 | . . . . . 2 6 5 6 6 5 3 . . . . . . . . Peak Build Rating 121 | 6 7 7 25 31 50 59 71 60 58 76 73 89 92 106 100 113 121 111 115 Average Rating 62 | 3 6 6 16 28 42 56 59 58 57 62 66 85 90 98 96 97 117 101 79 On Entrance 55 | . 6 7 7 25 31 50 51 59 58 58 64 73 89 88 106 71 113 111 44 Naked Turns . | . . . . . . . . . . . . . . . . . . . . Heaviest Build 73 | 13 13 11 11 11 40 30 42 47 42 43 43 49 48 64 61 55 73 63 37 Greatest Support 83 | 20 20 20 60 60 60 60 60 24 24 60 60 80 60 60 60 83 83 83 54 Greatest Overweight (x) 6 | . . . . . . . 1 1 1 1 1 4 1 2 1 . . 3 6 Average Overweight (x) . | . . . . . . . . 1 1 . . . . 1 . . . . . Largest Inventory Capacity 8 | 8 8 5 5 5 5 5 5 5 5 5 5 5 5 5 5 5 5 5 5 Average Capacity 5 | 7 5 5 5 5 5 5 5 5 5 5 5 5 5 5 5 5 5 5 5 Most Carried 7 | 7 5 5 5 5 5 5 5 5 5 5 5 5 5 5 5 5 5 5 5 Average Carried 4 | 3 4 5 4 4 4 4 4 4 5 4 4 4 4 4 3 4 5 4 1 Final Capacity 8 | 8 5 5 5 5 5 5 5 5 5 5 5 5 5 5 5 5 5 5 5 Final Carried 5 | 4 5 5 4 5 5 3 5 5 5 5 5 5 3 4 3 5 5 1 . Class Distribution -------------------- 33% | Hacker-Mutant 28% | Mutant 21% | Hacker-Skirmisher 9% | Wizard-Skirmisher 4% | Hacker-Assassin Dominant Class ---------------- Mutant | -10/Materials Mutant | -10/Mines Mutant | -10/Exiles Mutant | -9/Mines Mutant | -8/Materials Hacker-Mutant | -7/Factory Hacker-Assassin | -6/Factory Hacker-Mutant | -6/Lower Caves Hacker-Mutant | -6/Lower Caves Hacker-Mutant | -6/Zion Hacker-Mutant | -5/Proximity Caves Hacker-Skirmisher | -5/Factory Hacker-Skirmisher | -5/Extension Hacker-Skirmisher | -5/Cetus Hacker-Skirmisher | -5/Archives Wizard-Mutant | -4/Factory Wizard-Skirmisher | -4/DSF Wizard-Skirmisher | -4/Garrison Hacker-Skirmisher | -3/Research Resources | -11 -10 -10 -10 -9 -8 -7 -6 -6 -6 -6 -5 -5 -5 -5 -5 -4 -4 -4 -3 ----------- Run | Yrd Mat Min Exi Min Mat Fac Fac Low Low Zio Pro Fac Ext Cet Arc Fac DSF Gar Res Matter Collected 1778 | 255 59 21 . 95 132 . . 264 20 106 143 . 328 80 33 . 127 115 . Remotely . | . . . . . . . . . . . . . . . . . . . . Salvage Created 343 | . 10 . . 49 83 . 20 . 18 . 45 . . . 33 . . 85 . Parts 32 | . 3 . . 8 4 . 4 . 2 . 3 . . . 4 . . 4 . Haulers Intercepted . | . . . . . . . . . . . . . . . . . . . . Recyclers Shooed . | . . . . . . . . . . . . . . . . . . . . Parts Field Recycled . | . . . . . . . . . . . . . . . . . . . . Retrieved Matter . | . . . . . . . . . . . . . . . . . . . . Parts Self-Destructed 9 | . . . . . . . . . 8 . 1 . . . . . . . . Prevented 3 | . . . . . . . . . 2 . 1 . . . . . . . . Kills | -11 -10 -10 -10 -9 -8 -7 -6 -6 -6 -6 -5 -5 -5 -5 -5 -4 -4 -4 -3 ------- Run | Yrd Mat Min Exi Min Mat Fac Fac Low Low Zio Pro Fac Ext Cet Arc Fac DSF Gar Res Combat Hostiles Destroyed 10 | . 2 . . 3 . . . . 1 . 2 . . 1 . . . 1 . Guns 4 | . 1 . . 3 . . . . . . . . . . . . . . . Cannons 2 | . . . . . . . . . . . . . . 1 . . . 1 . AOE 4 | . 1 . . . . . . . 1 . 2 . . . . . . . . Classes Destroyed 6 | . 2 . . . 1 . . . . . 1 . . 1 1 . . . . Builder 1 | . . . . . 1 . . . . . . . . . . . . . . Operator 1 | . . . . . . . . . . . . . . . 1 . . . . Watcher 4 | . 1 . . . 2 . 1 . . . . . . . . . . . . Swarmer 7 | . 2 . . 3 . . . . 1 . 1 . . . . . . . . Hunter 2 | . . . . . . . . . . . 1 . . . . . . 1 . Cetus Guard 1 | . . . . . . . . . . . . . . 1 . . . . . Best Kill Streak 3 | . 2 . . 3 2 . 1 . 1 . 2 . . 1 1 . . 1 . Combat Bots Only 3 | . 2 . . 3 . . . . 1 . 2 . . 1 . . . 1 . Max Kills in Single Turn 2 | . 1 . . 1 1 . 1 . 1 . 2 . . 1 1 . . 1 . Gunslinging . | . . . . . . . . . . . . . . . . . . . . Exploded 2 | . 1 . . . . . . . 1 . 2 . . . . . . . . Melee . | . . . . . . . . . . . . . . . . . . . . Uniques/NPCs Destroyed . | . . . . . . . . . . . . . . . . . . . . Combat | -11 -10 -10 -10 -9 -8 -7 -6 -6 -6 -6 -5 -5 -5 -5 -5 -4 -4 -4 -3 -------- Run | Yrd Mat Min Exi Min Mat Fac Fac Low Low Zio Pro Fac Ext Cet Arc Fac DSF Gar Res Hostile Shots Fired 797 | . 39 . . 19 165 21 . 12 8 . 64 . 19 17 26 . 86 135 186 Missed 321 | . 7 . . 8 77 8 . 4 5 . 18 . 7 5 6 . 59 51 66 Hits 476 | . 32 . . 11 88 13 . 8 3 . 46 . 12 12 20 . 27 84 120 Melee 5 | . . . . . 1 . . . . . . . . . . . . . 4 Projectile 471 | . 32 . . 11 87 13 . 8 3 . 46 . 12 12 20 . 27 84 116 AOE 1 | . . . . . . . . . . . . . . . . . . . 1 Critical Strikes 23 | . . . . . 2 . . . 1 . 1 . . 1 . . . 6 12 Damage Taken 9208 | . 362 . . 93 1679 363 . 53 56 36 766 . 267 316 728 . 408 1413 2668 Core 2562 | . 25 . . 20 143 42 . 21 . . 171 . 57 53 30 . 31 669 1300 Absorbed by Shields 12 | . . . . . . 12 . . . . . . . . . . . . . Regen/Repaired (Parts) 229 | . 84 . . . . . 53 . . 92 . . . . . . . . . Core Remaining (%) 78 | 100 . . . 82 74 94 . . . . 77 . . . 86 . . 39 . Volleys Fired 139 | . 8 . 5 6 13 3 1 . 3 2 2 . 43 8 6 . . 27 12 Largest 3 | . 2 . 1 1 2 2 2 . 2 1 1 . 2 3 2 . . 2 1 Hottest 176 | . 150 . 100 40 108 97 134 . 144 36 39 . 160 161 115 . . 176 94 Shots Fired 161 | . 9 . 5 6 17 4 2 . 6 2 2 . 46 10 11 . . 29 12 Gun 55 | . 8 . . 6 10 3 2 . . . . . 14 1 11 . . . . Cannon 72 | . . . . . 5 . . . 6 . . . 22 2 . . . 27 10 Launcher 14 | . . . . . 2 1 . . . 2 2 . . 7 . . . . . Special 20 | . 1 . 5 . . . . . . . . . 10 . . . . 2 2 Kinetic 27 | . . . . . . . . . . . . . 19 2 6 . . . . Thermal 50 | . 9 . 5 . 8 3 2 . . . . . 17 1 5 . . . . Explosive 12 | . . . . . . 1 . . . 2 2 . . 7 . . . . . Electromagnetic 58 | . . . . 6 9 . . . 6 . . . . . . . . 27 10 Robot Hit Streak 13 | . 2 . . 3 4 1 1 . 2 . . . 6 5 4 . . 4 13 Robot Miss Streak 4 | . 2 . . 1 3 1 2 . 1 . . . 4 1 1 . . 1 . Penetration Max . | . . . . . . . . . . . . . . . . . . . . Secondary Targets . | . . . . . . . . . . . . . . . . . . . . Shots Hit Robots 109 | . 4 . . 4 14 19 17 2 2 . 2 . 17 7 4 . . 6 11 Core Hits 40 | . 2 . . 3 4 2 1 . 1 . 5 . 2 15 1 . . 3 1 Critical Kills . | . . . . . . . . . . . . . . . . . . . . Critical Parts Destroyed . | . . . . . . . . . . . . . . . . . . . . Critical Strikes 2 | . . . . . . . . . . . . . 1 1 . . . . . Burn 1 | . . . . . . . . . . . . . 1 . . . . . . Blast 1 | . . . . . . . . . . . . . . 1 . . . . . Melee Attacks 74 | . . . . . 8 17 16 2 1 22 6 . . . 2 . . . . Impact . | . . . . . . . . . . . . . . . . . . . . Slashing 28 | . . . . . . . . . . 22 4 . . . 2 . . . . Piercing . | . . . . . . . . . . . . . . . . . . . . Sneak Attacks 37 | . . . . . 3 16 16 . 1 . . . . . 1 . . . . Combat Hostiles . | . . . . . . . . . . . . . . . . . . . . Follow-up Attacks . | . . . . . . . . . . . . . . . . . . . . Damage Inflicted 2022 | . 60 . . 42 303 103 27 . 80 . 202 22 247 465 158 . . 235 78 Guns 490 | . 36 . . 42 105 37 27 . . . . . 155 21 67 . . . . Cannons 614 | . . . . . 126 . . . 26 . . . 92 60 . . . 232 78 Explosions 736 | . . . . . 64 32 . . 54 . 202 . . 384 . . . . . Melee 91 | . . . . . . . . . . . . . . . 91 . . . . Ramming 67 | . . . . . 8 34 . . . . . 22 . . . . . 3 . Kinetic 83 | . . . . . . . . . . . . . . 60 23 . . . . Thermal 595 | . 60 . . . 105 37 27 . 54 . . . 247 21 44 . . . . Explosive 618 | . . . . . . 32 . . . . 202 . . 384 . . . . . Electromagnetic 568 | . . . . 42 190 . . . 26 . . . . . . . . 232 78 Impact . | . . . . . . . . . . . . . . . . . . . . Slashing 91 | . . . . . . . . . . . . . . . 91 . . . . Piercing . | . . . . . . . . . . . . . . . . . . . . Highest Corruption 21 | . . . . . 1 2 . . . . . . . . 8 . . . 21 Average Corruption 3 | . . . . . 1 2 . . . . . . . . 8 . . . 4 Corruption Purged . | . . . . . . . . . . . . . . . . . . . . Corruption Blocked . | . . . . . . . . . . . . . . . . . . . . Effects 15 | . . . . . 3 . . . . . . . . . . . . . 12 Message Errors 3 | . . . . . 1 . . . . . . . . . . . . . 2 Matter Fused 3 | . . . . . . . . . . . . . . . . . . . 3 Heat Flow Errors 1 | . . . . . . . . . . . . . . . . . . . 1 Energy Discharges 3 | . . . . . 1 . . . . . . . . . . . . . 2 Data Loss (minor) 2 | . . . . . 1 . . . . . . . . . . . . . 1 Data Loss (major) 2 | . . . . . . . . . . . . . . . . . . . 2 Misdirections 1 | . . . . . . . . . . . . . . . . . . . 1 Overload Shots . | . . . . . . . . . . . . . . . . . . . . Overflow Damage 13 | . . . . . 9 . . . . . . . 4 . . . . . . Projectiles 13 | . . . . . 9 . . . . . . . 4 . . . . . . Explosions . | . . . . . . . . . . . . . . . . . . . . Melee . | . . . . . . . . . . . . . . . . . . . . Knockbacks 1 | . . . . . . . . . . . . 1 . . . . . . . Impact 1 | . . . . . . . . . . . . 1 . . . . . . . Kinetic . | . . . . . . . . . . . . . . . . . . . . Secondary . | . . . . . . . . . . . . . . . . . . . . Self-Inflicted Damage 66 | . . . . . 22 . . . . 36 7 . . . . . . 1 . Shots 3 | . . . . . 1 . . . . 1 1 . . . . . . . . Rammed 4 | . . . . . . . 1 . . . . . . . . . . 3 . Targets Rammed 10 | . . . . . 1 4 1 . . . . 1 . . . . . 3 . Kicked 6 | . . . . . 1 4 . . . . . 1 . . . . . . . Crushed . | . . . . . . . . . . . . . . . . . . . . Highest Temperature 447 | . 50 . 44 20 447 42 69 . 180 . 11 . 156 152 108 . . 288 195 Average Temperature 101 | . 21 . 16 18 234 22 38 . 74 . 11 . 48 46 42 . . 104 74 Received Heat Transfer 1440 | . . . . . 612 42 . 12 45 . 75 . 81 27 81 . . 221 244 Effects 9 | . . . . . 9 . . . . . . . . . . . . . . Shutdowns 5 | . . . . . 5 . . . . . . . . . . . . . . Energy Bleed 1 | . . . . . 1 . . . . . . . . . . . . . . Interference 3 | . . . . . 3 . . . . . . . . . . . . . . Siege Activations . | . . . . . . . . . . . . . . . . . . . . Martial Activations . | . . . . . . . . . . . . . . . . . . . . Shielding Activations . | . . . . . . . . . . . . . . . . . . . . Robots Disrupted . | . . . . . . . . . . . . . . . . . . . . Combat Hostiles . | . . . . . . . . . . . . . . . . . . . . Robots Corrupted . | . . . . . . . . . . . . . . . . . . . . Combat Hostiles . | . . . . . . . . . . . . . . . . . . . . Parts Fried 4 | . . . . . 2 . . . . . . . . . . . . 2 . Impact Corruptions . | . . . . . . . . . . . . . . . . . . . . Robots Melted . | . . . . . . . . . . . . . . . . . . . . Combat Hostiles . | . . . . . . . . . . . . . . . . . . . . Parts Melted . | . . . . . . . . . . . . . . . . . . . . Heat Transferred 1229 | . 161 . . . 222 74 37 . 50 . . . 561 50 74 . . . . Parts Sabotaged . | . . . . . . . . . . . . . . . . . . . . Parts Stolen . | . . . . . . . . . . . . . . . . . . . . Parts Stripped . | . . . . . . . . . . . . . . . . . . . . Power Chain Reactions 1 | . . . . . . . . . 1 . . . . . . . . . . Alert | -11 -10 -10 -10 -9 -8 -7 -6 -6 -6 -6 -5 -5 -5 -5 -5 -4 -4 -4 -3 ------- Run | Yrd Mat Min Exi Min Mat Fac Fac Low Low Zio Pro Fac Ext Cet Arc Fac DSF Gar Res Maximum Alert Level . | . . . . . . . . . . . . . . . . . . . . Low Security (%) 100 | 100 100 100 . 100 100 100 100 . . . . 100 100 100 100 100 100 100 100 Level 1 . | . . . . . . . . . . . . . . . . . . . . Level 2 . | . . . . . . . . . . . . . . . . . . . . Level 3 . | . . . . . . . . . . . . . . . . . . . . Level 4 . | . . . . . . . . . . . . . . . . . . . . Level 5 . | . . . . . . . . . . . . . . . . . . . . High Security . | . . . . . . . . . . . . . . . . . . . . Max Security . | . . . . . . . . . . . . . . . . . . . . Peak Influence 168 | . 40 . . 70 32 15 33 . . . . 14 100 105 15 . . 168 94 Initial 94 | . . . . . . . . . . . . . . . . . . . 94 Average 8 | . 3 . . 6 2 . 2 . . . . . 11 47 2 . . 27 12 Influence Increases 1324 | . 64 . . 70 129 48 77 . 30 . 50 14 192 178 24 . . 358 90 Destroy 0b10 Robot/C 460 | . 40 . . 60 40 . . . 20 . 40 . 100 80 . . . 80 . Destroy 0b10 Robot/NC 40 | . 5 . . . 15 . 5 . . . . . 5 5 5 . . . . Destroy Leader 100 | . 12 . . 10 24 . 2 . 10 . 10 . 22 . . . . 10 . Allied During Kill 54 | . . . . . 4 . . . . . . . 21 16 . . . 13 . Trap Triggered on 0b10 10 | . . . . . . . . . . . . . 10 . . . . . . Successful Hack 141 | . 7 . . . 16 22 55 . . . . 14 20 7 . . . . . Disable Machine 45 | . . . . . 15 . . . . . . . . . 15 . . . 15 Anti-Garrison Action 100 | . . . . . . . . . . . . . . . . . . 100 . Destroy Structure 134 | . . . . . . 11 . . . . . . 14 70 4 . . 35 . Partial Spotted 45 | . . . . . 15 15 15 . . . . . . . . . . . . Lose Combat Pursuer 195 | . . . . . . . . . . . . . . . . . . 120 75 Influence Decreases 1294 | . 64 . . 70 129 47 78 . 16 14 50 14 192 178 24 . . 190 228 Entered New Map 89 | . . . . . . . 1 . . 14 . . . . . . . . 74 Time Decay 865 | . 54 . . 70 118 22 77 . 16 . 50 14 180 130 19 . . . 115 Lost Part 206 | . 10 . . . 11 10 . . . . . . . 1 5 . . 130 39 Lost Ally 134 | . . . . . . 15 . . . . . . 12 47 . . . 60 . Squads Dispatched 21 | . 1 . . . 6 4 2 . . . . . . . . 2 1 . 5 Investigation 5 | . 1 . . . 2 . 1 . . . . . . . . 1 . . . Extermination 6 | . . . . . . 2 1 . . . . . . . . 1 . . 2 Reinforcement 10 | . . . . . 4 2 . . . . . . . . . . 1 . 3 Assault . | . . . . . . . . . . . . . . . . . . . . Garrison . | . . . . . . . . . . . . . . . . . . . . Intercept . | . . . . . . . . . . . . . . . . . . . . Searches Triggered . | . . . . . . . . . . . . . . . . . . . . Construction Impeded . | . . . . . . . . . . . . . . . . . . . . Haulers Reinforced . | . . . . . . . . . . . . . . . . . . . . Active Scanning Responses . | . . . . . . . . . . . . . . . . . . . . Cargo Convoy Interrupts 1 | . . . . . . 1 . . . . . . . . . . . . . Stealth | -11 -10 -10 -10 -9 -8 -7 -6 -6 -6 -6 -5 -5 -5 -5 -5 -4 -4 -4 -3 --------- Run | Yrd Mat Min Exi Min Mat Fac Fac Low Low Zio Pro Fac Ext Cet Arc Fac DSF Gar Res Distress Signals 9 | . . . . . 1 2 . . . . . . 2 2 . . . . 2 Communications Jammed . | . . . . . . . . . . . . . . . . . . . . Distress Signals . | . . . . . . . . . . . . . . . . . . . . Times Spotted 216 | . 14 . . 6 51 21 1 1 17 . 15 . 29 8 5 . 7 18 23 Peak Tracking Total 19 | . 6 . . 3 15 10 1 1 4 . 5 1 4 5 4 . 5 9 19 Tactical Retreats 47 | . 3 . . 1 9 3 . 1 6 . 4 . 6 1 1 . 3 4 5 Traps | -11 -10 -10 -10 -9 -8 -7 -6 -6 -6 -6 -5 -5 -5 -5 -5 -4 -4 -4 -3 ------- Run | Yrd Mat Min Exi Min Mat Fac Fac Low Low Zio Pro Fac Ext Cet Arc Fac DSF Gar Res Traps Triggered 11 | . 1 . . . 2 2 3 . . . . . 1 . . . . 1 1 Indirectly . | . . . . . . . . . . . . . . . . . . . . Trap Hack Attempts . | . . . . . . . . . . . . . . . . . . . . Triggered . | . . . . . . . . . . . . . . . . . . . . Disarmed . | . . . . . . . . . . . . . . . . . . . . Reprogrammed 1 | . . . . . . . . . . . . . 1 . . . . . . Reused 1 | . . . . . . . . . . . . . 1 . . . . . . Traps Extracted . | . . . . . . . . . . . . . . . . . . . . Installed . | . . . . . . . . . . . . . . . . . . . . Triggered 1 | . . . . . . . . . . . . . 1 . . . . . . Machines | -11 -10 -10 -10 -9 -8 -7 -6 -6 -6 -6 -5 -5 -5 -5 -5 -4 -4 -4 -3 ---------- Run | Yrd Mat Min Exi Min Mat Fac Fac Low Low Zio Pro Fac Ext Cet Arc Fac DSF Gar Res Machines Disabled 5 | . . . 1 . 1 . . . . . . . . . 1 . . 1 1 Max in Single Turn 1 | . . . 1 . 1 . . . . . . . . . 1 . . 1 1 Machines Repaired . | . . . . . . . . . . . . . . . . . . . . Machines Dismantled . | . . . . . . . . . . . . . . . . . . . . Machines Sabotaged . | . . . . . . . . . . . . . . . . . . . . Overloaded Fab Kills . | . . . . . . . . . . . . . . . . . . . . Hacking | -11 -10 -10 -10 -9 -8 -7 -6 -6 -6 -6 -5 -5 -5 -5 -5 -4 -4 -4 -3 --------- Run | Yrd Mat Min Exi Min Mat Fac Fac Low Low Zio Pro Fac Ext Cet Arc Fac DSF Gar Res Machines Accessed 51 | . 4 . 5 2 8 7 3 . . 1 1 2 9 1 . 3 . 1 4 Terminals 29 | . 2 . . 1 3 4 2 . . . 1 2 9 1 . 1 . 1 2 Fabricators 2 | . . . . . . 1 . . . . . . . . . 1 . . . Repair Stations 5 | . 1 . . . 1 1 1 . . . . . . . . . . . 1 Recycling Units 4 | . 1 . . . 2 . . . . . . . . . . . . . 1 Scanalyzers 2 | . . . . . 1 . . . . . . . . . . 1 . . . Garrison Access 2 | . . . . . 1 1 . . . . . . . . . . . . . Total Hacks 164 | . 11 . 50 5 19 17 7 . . 5 1 6 24 3 . 8 . 2 6 Successful 118 | . 7 . 50 2 12 7 5 . . 5 1 4 15 1 . 6 . 1 2 Failed 46 | . 4 . . 3 7 10 2 . . . . 2 9 2 . 2 . 1 4 Catastrophic 10 | . . . . 1 3 . 1 . . . . . 2 . . 1 . . 2 Database Lockouts . | . . . . . . . . . . . . . . . . . . . . Manual 2 | . . . 1 . . . . . . 1 . . . . . . . . . Terminals 72 | . 6 . . 4 7 10 4 . . . 1 6 24 3 . 2 . 2 3 Fabricators 4 | . . . . . . 1 . . . . . . . . . 3 . . . Repair Stations 13 | . 4 . . . 1 4 3 . . . . . . . . . . . 1 Recycling Units 8 | . 1 . . . 5 . . . . . . . . . . . . . 2 Scanalyzers 8 | . . . . . 5 . . . . . . . . . . 3 . . . Garrison Access 3 | . . . . . 1 2 . . . . . . . . . . . . . Terminal Hacks 97 | . 4 . 50 2 3 5 3 . . 5 1 4 15 1 . 1 . 1 2 Record 59 | . 2 . 49 1 1 1 3 . . . 1 . . . . . . . 1 Part Schematic 8 | . . . . . . . . . . 5 . 2 1 . . . . . . Open Door 7 | . . . . 1 . . . . . . . 1 4 1 . . . . . Open DSF 3 | . . . . . . 1 . . . . . . . . . 1 . . 1 Branch Access Points 1 | . . . . . . . . . . . . . 1 . . . . . . Emergency Access Points 2 | . . . . . . 1 . . . . . . . . . . . 1 . Terminal Index 1 | . . . . . . . . . . . . . 1 . . . . . . Alert Level 4 | . . . . . 1 1 . . . . . . 2 . . . . . . Locate Traps 2 | . . . . . . . . . . . . . 2 . . . . . . Reprogram Traps 1 | . . . . . . . . . . . . . 1 . . . . . . Recall Investigation 1 | . . . . . 1 . . . . . . . . . . . . . . Zone Layout 7 | . 2 . . . . 1 . . . . . 1 3 . . . . . . Proto ID Catalog 1 | . . . 1 . . . . . . . . . . . . . . . . Fabricator Hacks 3 | . . . . . . 1 . . . . . . . . . 2 . . . Network Status 1 | . . . . . . 1 . . . . . . . . . . . . . Load Schematic 1 | . . . . . . . . . . . . . . . . 1 . . . Build 1 | . . . . . . . . . . . . . . . . 1 . . . Repair Station Hacks 6 | . 3 . . . . 1 2 . . . . . . . . . . . . Scan Component 4 | . 2 . . . . 1 1 . . . . . . . . . . . . Repair 2 | . 1 . . . . . 1 . . . . . . . . . . . . Recycling Unit Hacks 4 | . . . . . 4 . . . . . . . . . . . . . . Process 1 | . . . . . 1 . . . . . . . . . . . . . . Report Inventory 2 | . . . . . 2 . . . . . . . . . . . . . . Retrieve Matter 1 | . . . . . 1 . . . . . . . . . . . . . . Scanalyzer 7 | . . . . . 4 . . . . . . . . . . 3 . . . Insert Component 5 | . . . . . 4 . . . . . . . . . . 1 . . . Analyze 2 | . . . . . . . . . . . . . . . . 2 . . . Garrison Access Hacks 1 | . . . . . 1 . . . . . . . . . . . . . . Coupler Status 1 | . . . . . 1 . . . . . . . . . . . . . . Unauthorized Hacks . | . . . . . . . . . . . . . . . . . . . . Terminals . | . . . . . . . . . . . . . . . . . . . . Fabricators . | . . . . . . . . . . . . . . . . . . . . Repair Stations . | . . . . . . . . . . . . . . . . . . . . Recycling Units . | . . . . . . . . . . . . . . . . . . . . Scanalyzers . | . . . . . . . . . . . . . . . . . . . . Garrison Access . | . . . . . . . . . . . . . . . . . . . . Data Cores Recovered . | . . . . . . . . . . . . . . . . . . . . Used . | . . . . . . . . . . . . . . . . . . . . Hacking Detections 34 | . 4 . . 1 7 6 3 . . . . 1 6 1 . 2 . . 3 Full Trace Events 2 | . . . . . 1 . . . . . . . . . . 1 . . . Feedback Events . | . . . . . . . . . . . . . . . . . . . . Feedback Blocked . | . . . . . . . . . . . . . . . . . . . . Robot Schematics Acquired 3 | . . . . . . . . . . 3 . . . . . . . . . Robots Built . | . . . . . . . . . . . . . . . . . . . . Authchips . | . . . . . . . . . . . . . . . . . . . . Time 67 | . . . . . . . . . . . . . . . . 67 . . . Total Robot Build Rating . | . . . . . . . . . . . . . . . . . . . . Part Schematics Acquired 21 | . . . . . . . . . . 17 . 2 1 . . 1 . . . Parts Built . | . . . . . . . . . . . . . . . . . . . . Authchips . | . . . . . . . . . . . . . . . . . . . . Time . | . . . . . . . . . . . . . . . . . . . . Total Part Build Rating . | . . . . . . . . . . . . . . . . . . . . Parts Repaired 2 | . 1 . . . . . 1 . . . . . . . . . . . . Time 45 | . 26 . . . . . 19 . . . . . . . . . . . . Parts Recycled . | . . . . . . . . . . . . . . . . . . . . Recycled Matter 93 | . . . . . 93 . . . . . . . . . . . . . . Retrieved Matter 93 | . . . . . 93 . . . . . . . . . . . . . . Retrieved Components . | . . . . . . . . . . . . . . . . . . . . Parts Scanalyzed 1 | . . . . . . . . . . . . . . . . 1 . . . Part Schematics Acquired 1 | . . . . . . . . . . . . . . . . 1 . . . Parts Damaged . | . . . . . . . . . . . . . . . . . . . . Bothacking | -11 -10 -10 -10 -9 -8 -7 -6 -6 -6 -6 -5 -5 -5 -5 -5 -4 -4 -4 -3 ------------ Run | Yrd Mat Min Exi Min Mat Fac Fac Low Low Zio Pro Fac Ext Cet Arc Fac DSF Gar Res Used RIF Installer 1 | . . . . . . . . . . . . . . . . . . 1 . Robots Hacked 27 | . . . . . 3 10 9 . . . . . 4 . . . . . 1 Non-combat 26 | . . . . . 2 10 9 . . . . . 4 . . . . . 1 Combat 1 | . . . . . 1 . . . . . . . . . . . . . . Robot Hacks Applied 38 | . . . . . 3 17 13 . . . . . 4 . . . . . 1 parse_system 2 | . . . . . 1 . . . . . . . 1 . . . . . . no_distress 14 | . . . . . 2 5 7 . . . . . . . . . . . . find_chute 8 | . . . . . . 4 4 . . . . . . . . . . . . find_fabricator 1 | . . . . . . 1 . . . . . . . . . . . . . find_dsf 1 | . . . . . . 1 . . . . . . . . . . . . . find_recycling 11 | . . . . . . 5 2 . . . . . 3 . . . . . 1 check_alert 1 | . . . . . . 1 . . . . . . . . . . . . . Relay Couplers Released . | . . . . . . . . . . . . . . . . . . . . Fabnet Peak Effective % . | . . . . . . . . . . . . . . . . . . . . Robots Rewired 13 | . . . . . . . . . . . . . 10 . . . . 3 . Allies Hacked . | . . . . . . . . . . . . . . . . . . . . Hacks Repelled . | . . . . . . . . . . . . . . . . . . . . Allies | -11 -10 -10 -10 -9 -8 -7 -6 -6 -6 -6 -5 -5 -5 -5 -5 -4 -4 -4 -3 -------- Run | Yrd Mat Min Exi Min Mat Fac Fac Low Low Zio Pro Fac Ext Cet Arc Fac DSF Gar Res Total Allies 21 | . . . . 2 . . . . . . . . 16 . . . . 3 . Largest Group 6 | . . . . 2 1 . . . . . . . 6 4 . . . 3 . Highest-Rated Group 188 | . . . . 46 31 . . . . . . . 188 126 . . . 144 . Highest-Rated Ally 48 | . . . . 31 31 . . . . . . . 39 39 . . . 48 . Total Orders 1 | . . . . . . . . . . . . . 1 . . . . . . GUARD 1 | . . . . . . . . . . . . . 1 . . . . . . Ally Attacks 132 | . . . . . 16 6 . . . . . . 48 48 . . . 14 . Total Damage 2251 | . . . . . 126 . . . . . . . 941 669 . . . 515 . Kills 15 | . . . . . 2 . . . . . . . 6 4 . . . 3 . Allies Corrupted 1 | . . . . . . . . . . . . . 1 . . . . . . Allies Melted 1 | . . . . . . . . . . . . . . . . . . 1 . Intel | -11 -10 -10 -10 -9 -8 -7 -6 -6 -6 -6 -5 -5 -5 -5 -5 -4 -4 -4 -3 ------- Run | Yrd Mat Min Exi Min Mat Fac Fac Low Low Zio Pro Fac Ext Cet Arc Fac DSF Gar Res Active Infowar (turns) 13175 | . 540 413 622 833 1646 908 762 681 587 1295 619 404 1797 298 164 259 129 1173 45 IFF 516 | . . . . . . . 4 512 . . . . . . . . . . . Terrain 1263 | . 536 413 265 49 . . . . . . . . . . . . . . . ECM 13175 | . 540 413 622 833 1646 908 762 681 587 1295 619 404 1797 298 164 259 129 1173 45 Robot Analysis Total . | . . . . . . . . . . . . . . . . . . . . Derelict Logs Recovered 5 | . . . . 1 . . . 1 2 . 1 . . . . . . . . Drone Launches 14 | . . . . . 8 6 . . . . . . . . . . . . . Drone Recoveries . | . . . . . . . . . . . . . . . . . . . . Exploration | -11 -10 -10 -10 -9 -8 -7 -6 -6 -6 -6 -5 -5 -5 -5 -5 -4 -4 -4 -3 ------------- Run | Yrd Mat Min Exi Min Mat Fac Fac Low Low Zio Pro Fac Ext Cet Arc Fac DSF Gar Res Turns Passed 14222 | 65 554 413 622 833 1663 910 872 681 587 1295 619 404 1797 298 164 259 129 1285 772 Spaces Moved 10791 | 46 375 270 579 651 1327 702 658 598 416 1076 546 378 1240 155 81 153 110 819 611 Core 55 | 8 . . . . . . . . . . . . . . . . . . 47 Treads 50 | . . . . . . . . . . . . . . . . . . . 50 Legs 7169 | 38 375 270 579 651 1327 702 284 . . 8 255 376 1162 5 81 153 110 653 140 Wheels . | . . . . . . . . . . . . . . . . . . . . Hover 3344 | . . . . . . . 374 598 416 1068 291 2 78 150 . . . 166 201 Flight 173 | . . . . . . . . . . . . . . . . . . . 173 Fastest Speed 24 | 50 120 120 90 90 45 45 45 108 108 90 45 90 45 114 45 60 60 45 24 Average Speed 95 | 107 120 120 100 90 78 79 98 108 108 107 96 95 90 156 115 87 73 95 77 Slowest Speed 350 | 120 120 120 120 90 90 90 125 108 108 108 111 270 114 170 170 100 100 190 350 Overloaded Moves 990 | . . . . . 367 170 37 . . . 43 . 18 5 35 25 72 78 140 Propulsion Burnouts 1 | . . . . . . . . . . . . . . . . . . . 1 Robots Hopped 4 | . . . . . . . . . . . . . . . . . . . 4 Potential Cave-ins 15 | . . . . . 2 . . . . . . . 13 . . . . . . Cave-ins Triggered 2 | . . . . . 1 . . . . . . . . . 1 . . . . Time Travels 1 | . . . 1 . . . . . . . . . . . . . . . . Exploration Rate (%) 54 | 4 64 46 93 96 71 26 20 80 55 85 80 9 76 63 65 5 82 48 19 Regions Visited 19 Branch Regions 10 Pre-discovered Areas 4 | . . . 1 . . . . 1 . 1 1 . . . . . . . . Known Exits Taken 10 | . . . . . . 1 1 1 1 . 1 1 1 1 1 1 . . . Unknown Exits Taken 7 | 1 1 1 1 1 1 . . . . 1 . . . . . . . . . Scrap Searched 20 | . . 1 . 2 . . . 8 3 2 4 . . . . . . . . Spaces Dug 61 | . . . 4 . . . . . . 5 30 . 20 . 2 . . . . Terrain Destroyed 175 | . . . 4 . . 11 . . 3 27 30 . 20 78 2 . . . . Melee 5 | . . . . . . . . . . 5 . . . . . . . . . Projectile 26 | . . . 4 . . . . . . . . . 20 . 2 . . . . AOE 144 | . . . . . . 11 . . 3 22 30 . . 78 . . . . . Terrain Rammed . | . . . . . . . . . . . . . . . . . . . . Walls Destroyed . | . . . . . . . . . . . . . . . . . . . . Machines Disabled . | . . . . . . . . . . . . . . . . . . . . Actions | -11 -10 -10 -10 -9 -8 -7 -6 -6 -6 -6 -5 -5 -5 -5 -5 -4 -4 -4 -3 --------- Run | Yrd Mat Min Exi Min Mat Fac Fac Low Low Zio Pro Fac Ext Cet Arc Fac DSF Gar Res Total 14497 | 61 467 359 604 892 1939 1051 883 634 547 1171 632 423 1873 199 137 275 156 1296 898 Wait 3032 | . 68 88 9 221 521 310 155 18 125 50 64 21 527 23 45 114 41 401 231 Move 10764 | 45 374 269 578 650 1326 701 657 597 415 1075 545 377 1239 154 80 152 109 817 604 Hop 3 | . . . . . . . . . . . . . . . . . . . 3 Pick Up 107 | 10 6 . 3 4 23 4 9 3 . 3 6 6 1 4 . 2 1 2 20 Fast Attach 40 | . 3 1 2 3 6 2 2 5 2 2 . 2 2 . . 5 2 1 . Attach 78 | 6 2 . 1 1 15 3 8 . . 1 6 8 . 3 . 1 . 5 18 Detach 11 | . . . . . 2 . 2 . . . 1 2 . 1 1 1 . . 1 Swap 42 | . 2 . 1 1 7 3 2 1 . 11 1 1 1 4 1 . 1 1 4 Drop 79 | . 4 1 5 6 17 4 4 8 1 5 1 5 5 2 2 . 2 2 5 Fire 139 | . 8 . 5 6 13 3 1 . 3 2 2 . 43 8 6 . . 27 12 Melee 74 | . . . . . 8 17 16 2 1 22 6 . . . 2 . . . . Ram 4 | . . . . . . . 1 . . . . . . . . . . 3 . Kick 6 | . . . . . 1 4 . . . . . 1 . . . . . . . Crush . | . . . . . . . . . . . . . . . . . . . . Escape Stasis 38 | . . . . . . . 26 . . . . . 12 . . . . . . Rewire 80 | . . . . . . . . . . . . . 43 . . . . 37 . Trap . | . . . . . . . . . . . . . . . . . . . . Miscellaneous . | . . . . . . . . . . . . . . . . . . . . Route ------- -11/Scrapyard -10/Materials (discovered 2 exits: [*Mat] / [*Min]) -10/Mines (discovered 3 exits: [*Mat] / *Exi / [*Sub]) -10/Exiles (discovered 2 exits: *Min x2) -9/Mines (discovered 2 exits: *Mat x2) -8/Materials -7/Factory -6/Factory -6/Lower Caves -6/Lower Caves (discovered 2 exits: Fac / *Zio) -6/Zion -5/Proximity Caves -5/Factory (discovered 2 exits: Fac / *Ext) -5/Extension (discovered 2 exits: *Fac / *Cet) -5/Cetus -5/Archives -4/Factory -4/DSF -4/Garrison -3/Research History --------- Turn | Location | Event 6 | -11/Scrapyard | Discovered new exit (range 15) 66 | -11/Scrapyard | Entered Materials 287 | -10/Materials | Discovered new exit (range 15) 309 | -10/Materials | Build established: Mutant 485 | -10/Materials | Repaired Aluminum Leg 599 | -10/Materials | Discovered new exit (range 11) 620 | -10/Materials | Entered Mines 625 | -10/Mines | Met a Derelict bent on vengeance 665 | -10/Mines | Discovered new exit (range 10) 758 | -10/Mines | Discovered new exit (range 8) 1024 | -10/Mines | Deemed a non-threat by the Exiles lab entrance 1024 | -10/Mines | Discovered new exit (range 5) 1033 | -10/Mines | Entered Exiles 1093 | -10/Exiles | Discovered new exit (range 15) 1128 | -10/Exiles | Met 8R-AWN 1153 | -10/Exiles | Met EX-HEX 1190 | -10/Exiles | Met EX-BIN 1207 | -10/Exiles | Aligned with FarCom system 1208 | -10/Exiles | Given EX-Vault access code 1285 | -10/Exiles | Opened EX-Vault 1296 | -10/Exiles | Found Chronowheel 1297 | -10/Exiles | Activated Chronowheel 1297 | -10/Exiles | Spacetime reconverged on an earlier point 1302 | -10/Exiles | Found Potential Leg 1305 | -10/Exiles | Found Potential Leg 1329 | -10/Exiles | Warned to stay clear of 0b10 Research branches 1359 | -10/Exiles | Learned location of Zion (-6) 1389 | -10/Exiles | Discovered new exit (range 10) 1427 | -10/Exiles | Met EX-DEC 1463 | -10/Exiles | Visited The Gauntlet 1655 | -10/Exiles | Left Exiles lab with Potential Leg 1655 | -10/Exiles | Entered Mines 1660 | -9/Mines | Found the Drone Emporium 1665 | -9/Mines | Found Prototype Device 1840 | -9/Mines | Found a hidden stash of uninstalled traps 1846 | -9/Mines | Discovered new exit (range 7) 1868 | -9/Mines | Found a damaged Exp. Sensor Array with a note attached 1871 | -9/Mines | Found Prototype Device 2035 | -9/Mines | Discovered new exit (range 12) 2203 | -9/Mines | Learned Materials machine intel 2488 | -9/Mines | Entered Materials 2488 | -8/Materials | Accompanied by 1 ally 2488 | -8/Materials | Evolved 4 slots: Power x1, Propulsion x1, Utility x2 2489 | -8/Materials | Loaded intel: 67 machine locations 2493 | -8/Materials | Led the pair of lost Derelicts to an unsafe place 2632 | -8/Materials | Identified Exp. Sensor Array 2632 | -8/Materials | Identified Bomb Drone Bay 3607 | -8/Materials | Lost 4 parts (2p1u1w) 3723 | -8/Materials | Crushed by falling debris 3834 | -8/Materials | Discovered new exit (range 16) 4151 | -8/Materials | Entered Factory 4151 | -7/Factory | Evolved 2 slots: Utility x2 4431 | -7/Factory | Build established: Hacker-Mutant 4933 | -7/Factory | Cargo convoy interrupted 4994 | -7/Factory | Lost 6 allies 5056 | -7/Factory | Discovered new exit (range 5) 5061 | -7/Factory | Identified exit to Factory 5061 | -7/Factory | Entered another Factory area 5061 | -6/Factory | Evolved 2 slots: Utility x1, Weapon x1 5545 | -6/Factory | Build established: Hacker-Assassin 5566 | -6/Factory | Repaired Nuclear Core 5764 | -6/Factory | Discovered new exit (range 10) 5777 | -6/Factory | Identified exit to Lower Caves 5933 | -6/Factory | Entered Lower Caves 6068 | -6/Lower Caves | Spotted B-75 Beast 6235 | -6/Lower Caves | Build established: Hacker-Mutant 6260 | -6/Lower Caves | Found DCF Scrap (12 items) 6495 | -6/Lower Caves | Discovered new exit (range 12) 6512 | -6/Lower Caves | Identified exit to Lower Caves 6614 | -6/Lower Caves | Entered another Lower Caves area 6647 | -6/Lower Caves | Identified exit to Factory 7145 | -6/Lower Caves | Learned 4 Factory zone layouts 7185 | -6/Lower Caves | Discovered new exit (range 13) 7198 | -6/Lower Caves | Identified exit to Zion 7201 | -6/Lower Caves | Entered Zion 7279 | -6/Zion | Given the Hacking Drone Bay 7280 | -6/Zion | Found Prototype Device 7280 | -6/Zion | Identified Hacking Drone Bay 7808 | -6/Zion | Rebuked by Imprinter 7917 | -6/Zion | Visited the Megawrench Repair Shop 7917 | -6/Zion | Megawrench repaired 8 parts 8087 | -6/Zion | Warned about damaging Zion machinery 8355 | -6/Zion | Discovered new exit (range 16) 8394 | -6/Zion | Acquired unknown access codes intercepted by a Zionite 8496 | -6/Zion | Entered Proximity Caves 8873 | -5/Proximity Caves | Spotted B-75 Beast 8929 | -5/Proximity Caves | Learned location of Armory (-3) 8939 | -5/Proximity Caves | Lost 6 parts (2n1u3w) 9047 | -5/Proximity Caves | Discovered exit to Factory (range 15) 9115 | -5/Proximity Caves | Entered Factory 9115 | -5/Factory | Evolved 2 slots: Propulsion x1, Utility x1 9116 | -5/Factory | Identified exit to Factory 9382 | -5/Factory | Discovered new exit (range 6) 9389 | -5/Factory | Identified exit to Extension 9484 | -5/Factory | Build established: Hacker-Skirmisher 9519 | -5/Factory | Entered Extension 9592 | -5/Extension | Rescued a captive Derelict 9833 | -5/Extension | Rescued a captive Derelict 9833 | -5/Extension | Rescued a captive Derelict 10055 | -5/Extension | Identified exit to Cetus 10365 | -5/Extension | Lost 5 allies 10966 | -5/Extension | Rescued a captive Derelict 11011 | -5/Extension | Lost 3 allies 11057 | -5/Extension | Rescued a captive Derelict 11059 | -5/Extension | Rescued a captive Derelict 11301 | -5/Extension | Discovered exit to Factory (range 10) 11316 | -5/Extension | Entered Cetus 11316 | -5/Cetus | Accompanied by 4 allies 11342 | -5/Cetus | Spotted Cetus Guard 11342 | -5/Cetus | Spotted Cetus Guard 11342 | -5/Cetus | Allies destroyed Cetus Guard 11349 | -5/Cetus | Spotted Cetus Guard 11351 | -5/Cetus | Spotted Cetus Guard 11360 | -5/Cetus | Allies destroyed Cetus Guard 11364 | -5/Cetus | Allies destroyed Cetus Guard 11368 | -5/Cetus | Destroyed Cetus Guard 11520 | -5/Cetus | Discovered new exit (range 15) 11544 | -5/Cetus | Identified exit to Archives 11579 | -5/Cetus | Spotted Cetus Guard 11579 | -5/Cetus | Spotted Cetus Guard 11614 | -5/Cetus | Entered Archives 11754 | -5/Archives | Crushed by falling debris 11771 | -5/Archives | Unable to access archive contents 11772 | -5/Archives | Discovered exit to Factory (range 14) 11778 | -5/Archives | Entered Factory 11778 | -4/Factory | Evolved 2 slots: Utility x2 11800 | -4/Factory | Lost 4 parts (2u2w) 11869 | -4/Factory | Found Prototype Hackware 11869 | -4/Factory | Identified Exp. System Shield 11871 | -4/Factory | Found Exp. System Shield 11874 | -4/Factory | Found Exp. System Shield 11877 | -4/Factory | Found Exp. System Shield 12030 | -4/Factory | Identified exit to DSF 12037 | -4/Factory | Entered DSF 12091 | -4/DSF | Additional patrols routed to DSF 12154 | -4/DSF | Discovered new exit (range 14) 12165 | -4/DSF | Identified exit to Garrison 12166 | -4/DSF | Entered Garrison 12367 | -4/Garrison | Build established: Wizard-Skirmisher 12999 | -4/Garrison | Spotted B-86 Titan 13048 | -4/Garrison | Triggered checkpoint 13098 | -4/Garrison | Triggered checkpoint 13352 | -4/Garrison | Lost 3 allies 13378 | -4/Garrison | Triggered checkpoint 13395 | -4/Garrison | Triggered checkpoint 13402 | -4/Garrison | Core integrity fell below 50% 13418 | -4/Garrison | Installed Relay Interface Framework 13426 | -4/Garrison | Lost 10 parts (2p3n2u3w) 13444 | -4/Garrison | Discovered new exit (range 8) 13448 | -4/Garrison | Identified exit to Research 13451 | -4/Garrison | Entered Research 13451 | -3/Research | Evolved 2 slots: Propulsion x1, Utility x1 13773 | -3/Research | Build established: Hacker-Skirmisher 14108 | -3/Research | System corruption reached 10% 14122 | -3/Research | Core integrity fell below 50% 14154 | -3/Research | Lost 16 parts (2p6n5u3w) 14191 | -3/Research | Core integrity fell below 20% 14223 | -3/Research | Destroyed by C-35 Carver with Carbide Saw Last Messages --------------- 14183_ Slug penetrates Wall. 14184_ Critical hit (Burn: +50). 14186_ Penetrated by Slug. 14186_ Q-thruster destroyed. 14186_ Penetrated by Slug. 14186_ Slug penetrates Wall. 14194_ ALERT: Suspicious intruders detected, dispatching Cutter reinforcements to area. 14197_ System corrupted: Matter fused (-9). 14204_ ALERT: Suspicious intruders detected, dispatching Cutter reinforcements to area. 14210_ Reaction Chamber disabled. 14210_ Field Propulsion Drive destroyed. 14211_ Imp. System Shield destroyed. 14213_ System corrupted: Heat flow error (+135). 14217_ Knocked back. 14217_ C-35 Carver knocked back. 14219_ Gyrokinetic Inverter severed. 14219_ Imp. Signal Interpreter severed. 14221_ Scanalyzer disabled. Map ----- +----------------------------------------------------+ | ?????????????????????????????????????????????????? | | ?????????????????????????????????????????????????? | | ?????????????????????????????????????????????????? | | ?????????????????????????????????????????????????? | | ?????????????????????????????????????????????????? | | ?????????????????????????????????????????????????? | | ?????????????????????????????????????????????????? | | ?????????????????????????????????????????????????? | | ?????????????????????????????????????????????????? | | ?????????????????????????????????????????????????? | | ?????????????????????????????????????????????????? | | ?????????????????????????????????????????????????? | | ?????????????????? ????????????????????????????? | | ????????????????# #####+##????????????????????? | | ?????????????? #????????????????????? | | ???????????h?? #????????????????????? | | ?????????????? ????????????????????? | | ??????????????? w !! #????????????????????? | | ????????????????#u !! = #????????????????????? | | ????????????????# #????????????????????? | | ????????????????# #??????""#???????????? | | ????????????????# k #????? #???????????? | | ????????????????# // #???? #???????????? | | ????????????????# // #??? ????????????? | | ????????????????#^ #??? ?????????????? | | ????????????????# u @ #?? g ?? #???????????? | | ????????????????# c #?g ?? ????????????? | | ????????????????# ##g###+### ????????? | | ????????????????# w ???????? | | ????????????????# u c R ???????? | | ????????????????# ""T""c ???????? | | ????????????????+ """"" ???????? | | ????????????????######## = #####+#####?????????? | | ?????????????????# #??????????????????? | | ???????????????w?# #??????????????????? | | ?????????????????# """S""" #??????????????????? | | ???????????????w?# """ "" #??????????????????? | | ??????????????g??# #??????????????????? | | ???????????????H?# #??????????????????? | | ??????????????g??# #??????????????????? | | ?????????????????# """"""" #??????????????????? | | ?????????????????# """"""" #??????????????????? | | ?????????????????# """""""pp #??????????????????? | | ?????????????????#! #??????????????????? | | ?????????????????# #??????????????????? | | ????????????????#######+#########????????????????? | | ????????????????# ] #????????????????? | | ????????????????# #????????????????? | | ????????????????# #????????????????? | | ????????????????# #????????????????? | +----------------------------------------------------+ Best States ------------- Heat Dissipation 46 Coolant Potential 120 Energy Generation 65 Energy Capacity 720 Matter Stores 300 Matter Capacity 300 Sight Range 16 Terrain Scan Range 14 Terrain Scan Density 110 ECM Strength 3 Armor Coverage 750 Evasion (%) 78 Targeting Accuracy 8 Melee Accuracy 8 Recoil Reduction 2 Offensive Hacking 30 Defensive Hacking 76 Authchip Count 2 Item Schematics ----------------- Flamer | -6/Zion | Free Beamcaster | -6/Zion | Free Ripper | -6/Zion | Free Hvy. Beamcaster | -6/Zion | Free Tactical Coordination Suite | -6/Zion | Free Tesla Rifle | -6/Zion | Archive Adv. Signal Interpreter | -6/Zion | Archive Flexi-carbon Leg | -6/Zion | Archive Imp. Weapon Cycler | -6/Zion | Archive Phase Gun | -6/Zion | Archive Hvy. Plasma Cannon | -6/Zion | Archive Field Propulsion Drive | -6/Zion | Archive Imp. Recalibrator | -6/Zion | Archive IFF Parser | -6/Zion | Archive Lgt. Fission Core | -6/Zion | Archive Imp. Hacking Suite | -6/Zion | Archive Adv. Target Analyzer | -6/Zion | Archive Variable Charge Gun | -5/Factory | Hacked Nanoactuators | -5/Factory | Hacked Biometal Leg | -5/Extension | Hacked Imp. Gravmag System | -4/Factory | Scanalyzed Robot Schematics ------------------ B-48 Gladiator | -6/Zion | Archive G-47 Trooper | -6/Zion | Archive G-50 Soldier | -6/Zion | Archive Fabricated ------------ Nothing Repaired ---------- Aluminum Leg | 6% | -10/Materials Nuclear Core | 29% | -6/Factory Alien Tech Used ----------------- None Achievements -------------- None Challenges ------------ None Game ------ Seed BombardmentSwarmNetwork Manual? 0 Play Time 04:08:54 Cumulative 44.1 hours Start 2025.09.03 @ 17:12:05 End 2025.09.04 @ 17:33:26 Sessions 4 Manual Loads 0 Difficulty Rogue Special Mode None Game No. 40 Rogue 40 Adventurer 0 Explorer 0 Win Type - Total 0 Types 0/0/0/0/0/0/0/0/0/0 Lore% 24 Gallery% 31 Achievement% 28 Wizard Run 0 Options --------- Layout 1 ASCII 0 Keyboard 0 Movement Numpad Keybinds 0 Fullscreen 1 Font 24/Smallcaps Map View 50x35 Zoom Use 0% Tactical HUD 1 Map Filters NONE Filters NONE Steam 1 RUN: 4988bd81-eb5f-4337-b17c-b9be830e30b2